Workbook

Sheet Anleitung
B2: Allgemeine Bedienungsanleitung (Stand 18.05.2021)
B4: Ergebnisse sind Orientierungswerte:
B5: Auf Basis der Anlagen im Demonstrationsprojekt und auf Basis von Herstellerbefragungen können mithilfe des Excel-basierten Tools die Anschaffungskosten, die jährlichen Kosten sowie der jährliche Arbeitszeitbedarf für verschiedene Arten der Einnetzung berechnet werden. Aufgrund der Vielzahl an technischen Umsetzungsmöglichkeiten, den unterschiedlichen Anforderungen, die sich aus dem Anlagenstandort ergeben (Wind, Gefälle, Gräben etc.), und des großen Einflusses der durch den Obstbetrieb selbst erbrachten Leistungen, sind die Ergebnisse als Orientierungswert zu verstehen.
B7: Nutzung des Tools:
B8: Zunächst müssen Angaben zu der Anlage, die eingenetzt werden soll, und zu der Art der gewünschten Einnetzung gemacht werden. Hierzu gibt es im Tabellenblatt Netzrechner entsprechende Felder. Es ist wichtig für alle rot markierten Felder in der entsprechenden Reihenfolge eine Auswahl zu treffen.
B12: Schritt 1: Welches Anbauverfahren soll eingenetzt werden? | D12: Art der Bestehenden Anlage auswählen : Hier können Sie zwischen Foliendach, Folientunnel und Freiland bzw. Freiland_lowCost unterscheiden (Die Option Freiland_LowCost steht für eine Anlage, die durch einen geringen Material- und Montageaufwand gekennzeichnet ist, und von dem Obstbauer selbst geplant und errichtet wird. Die Option ist nur für windgeschützte Anlagen unter 0,4 Hektar aussagekräftig)
B14: link Auswahl
B16: Schritt 2: Welche Fläche soll eingenetzt werden? | D16: Hier können Sie Ausmaße der Anlage, die eingenetzt werden soll angeben. Je nach Art der Anlage müssen hier noch die Reihenanzahl, der Abstand der Folie zum Boden, die Anzahl von Tunneln, freistehende oder verbundene Tunnel etc. ausgewählt werden. Wichtig! Wenn Sie die Auswahl in Schritt 1 ändern, müssen Sie die Felder 2 bis 7 neu auswählen.
B18: link Anlagenform
B21: Schritt 3: Netzpreis und Lohnkosten festlegen? | D21: Hier können Sie den Preis je m² Netz, sowie die Lohnansatz zur Berechnung der Arbeitskosten festlegen sowie die Nutzungsdauer der Netze festlegen. Hier sind bereits Werte vorgegeben. Sie müssen hier also keine Angeben machen.
B23: Löhne und Preise
B25: Schritt 4: Wie soll die Einnetzung ausgestaltet werden? | D25: Hier können Sie das Einnetzungssystem festlegen (Seitlich, komplett, mit oder ohne Vorgewende etc.). Außerdem können Sie den Lagerort, die Art des Bodenabschlusses und den Zugang zur Anlage festlegen. Wichtig! Für alle Felder ( 8-11) muss anhand der Liste eine Option ausgewählt werden.
B27: link Einnetzungssystem
B30: Schritt 5: Ergebnisse | D30: Die Anschaffungskosten geben an wieviel Geld Sie inklusive Arbeitskosten investieren müssen. Die jährlichen Kosten beinhalten die Kosten für Reparatur, Arbeitskosten und die Abschreibung auf die Anschaffungskosten. Wichtig! Falls kein Ergebnis angezeigt wird, bitte überprüfen sie die Auswahl in den Felder 8-11.
B31: link Ergebnisse

Sheet Netzrechner
B2: Angaben zur Anlage | G2: angestrebte Einnetzung (8) | H2: Seitliche Einnetzung | K2: Zugang zur Anlage (9) | L2: Schleuse (Klein) | O2: Ergebnis: Kosten der Einnetzung (ohne MwSt.) :
O3: ='Ergebnisse Detail'!C4 -> Folientunnel ; Fläche: 1,125ha ; Seitliche Einnetzung ; Netzpreis: 0,86 € je m² ; Nutzungsdauer Netze: 10 Jahre ; Lohnansatz Einnetzung: 14,264 €/Akh
B4: Art der bestehenden Anlage (1): | C4: Folientunnel | G4: =VLOOKUP(Foto!F1,Foto!$F$2:$F$19,1,FALSE) -> FolientunnelSeitliche Einnetzung | K4: =VLOOKUP(L2,Foto!$K$2:$K$17,1,FALSE) -> Schleuse (Klein)
B5: Fläche: | C5: =C6*C7/10000*IF(C4=Daten!B10,Netzrechner!C8,1) -> 1.125 | D5: ha | O5: Anschaffungskosten | P5: =IFERROR('Ergebnisse Detail'!P9,"") -> 7876.356417 | Q5: €
B6: =IF($C$4=Daten!$B$10,"Länge Tunnel (2):","Reihenlänge (2):") -> Länge Tunnel (2): | C6: 125 | D6: m
B7: =IF($C$4=Daten!$B$10,"Breite Tunnel (3):","Breite (3)") -> Breite Tunnel (3): | C7: 9 | D7: m | O7: Arbeitszeitbedarf Erstmontage | P7: =IFERROR('Ergebnisse Detail'!D20,"") -> 28.95833333 | Q7: h
B8: =IF(C4=Daten!B10,Auswahloptionen2!N3,IF(C4=Daten!B4,Auswahloptionen2!N4,IF(C4=Daten!B14,Auswahloptionen2!N4,IF(C4=Daten!B20,Auswahloptionen2!N4,Auswahloptionen2!N4)))) -> Anzahl Tunnel (4) | C8: 10 | D8: =IF(B8=Auswahloptionen2!N3,"n","m") -> n
B9: =IF(C4=Daten!B10,Auswahloptionen2!A5,IF(C4=Daten!B4,Auswahloptionen2!A5,IF(C4=Daten!B14,Auswahloptionen2!A4,IF(C4=Daten!B20,Auswahloptionen2!A4,Auswahloptionen2!A4)))) -> Strecke Boden- Folie (5) | C9: 2 | D9: m | O9: Jährliche Kosten | P9: =IFERROR('Ergebnisse Detail'!N12,"") -> 2774.262576 | Q9: € je Jahr
B10: =IF(C4=Daten!B10,"Tunnelhöhe (6)",IF(C4=Daten!B4,"Anzahl Reihen (6)",IF(H2=Daten!C15,"Anzahl Reihen mit Stützpfählen (6)","Anzahl Reihen (6)"))) -> Tunnelhöhe (6) | C10: 3.5 | D10: =IF(C4=Daten!B10,"m","") -> m
B11: =IF(C8>1,IF(C4=Daten!B10,"einzelne Tunnel freistehend ? (7)",""),"") -> einzelne Tunnel freistehend ? (7) | C11: nein | O11: Jährlicher Arbeitszeitbedarf: | P11: =IFERROR('Ergebnisse Detail'!J17,"") -> 127.6983333 | Q11: h je Jahr
G12: Bodenabschluss/ Netzbefestigung (10) | H12: Beschwerung/Sonstiges | K12: =IF(H2=Daten!C39,"-",IF(H2=Daten!C40,"-",IF(H2=Daten!C41,"-",IF(H2=Daten!C42,"-","Lagerung (11)")))) -> Lagerung (11) | L12: Anlage ( an der Gerüstkonstruktion)
B13: Optional Lohnansatz, Nutzungsdauer, Netzpreis
B14: Saisonarbeitskräfte | C14: 10.44 | D14: €/Akh | G14: =VLOOKUP(H12,Foto!$I$2:$I$18,1,FALSE) -> Beschwerung/Sonstiges | K14: =VLOOKUP(L12,Foto!$D$2:$D$18,1,FALSE) -> Anlage ( an der Gerüstkonstruktion)
B15: Festangestellte | C15: 20 | D15: €/Akh
B16: Lohnansatz Einnetzung: | C16: =Netzrechner!C17/100*C14+(1-Netzrechner!C17/100)*C15 -> 14.264 | D16: €/Akh
B17: Anteil Saisonarbeitskräfte | C17: 60 | D17: %
B18: Kleinteile | C18: 10 | D18: a
B19: Netz | C19: 10 | D19: Jahre
B20: Zinsansatz | C20: 0.03 | D20: %
B21: Netzpreis je m² | C21: 0.86 | D21: € je m²
B22: Höhe des eingenetzten Vorgewendes | C22: 3.5 | D22: m
G25: Bei den Bildern handelt es sich um Beispiele aus den Anlagen der Obstbaubetrieben des vom BMEL geförderte Demonstrationsvorhaben „Einnetzen von Obstkulturen zum Schutz gegen die Kirschessigfliege“

Sheet Ergebnisse Detail (hidden)
C2: =Netzrechner!L12 -> Anlage ( an der Gerüstkonstruktion) | E2: =Netzrechner!H2 -> Seitliche Einnetzung | J2: =Netzrechner!H12 -> Beschwerung/Sonstiges | N2: =Netzrechner!L2 -> Schleuse (Klein)
C3: =Netzrechner!C4 -> Folientunnel | D3: ; | E3: =Netzrechner!H2 -> Seitliche Einnetzung | T3: =(VLOOKUP($C$3&$E$3,CHOOSE({1,2},Daten!$B$4:$B$20&Daten!$C$4:$C$20,Daten!$E$4:$E$20),2,FALSE))*Parameter2!D11*Netzrechner!C16 -> 0
C4: =CONCATENATE(C3,D3,Netzrechner!B5,Netzrechner!C5,Netzrechner!D5,'Ergebnisse Detail'!D3,E3,D3,D8,D3,"Nutzungsdauer Netze: ",Netzrechner!C19,Netzrechner!D19,'Ergebnisse Detail'!D3,Netzrechner!B16,Netzrechner!C16,Netzrechner!D16) -> Folientunnel ; Fläche: 1,125ha ; Seitliche Einnetzung ; Netzpreis: 0,86 € je m² ; Nutzungsdauer Netze: 10 Jahre ; Lohnansatz Einnetzung: 14,264 €/Akh
C6: Kosten der Einnetzung
C8: Anschaffungskosten | D8: =CONCATENATE("Netzpreis: ",Netzrechner!C21," € je m²") -> Netzpreis: 0,86 € je m² | F8: Gerüst Einnetzung | H8: Erstmontage | J8: Netzanbringung | K8: =I8 ->  | L8: Bodenabschluss | N8: Anlagenzugang | O8: =M8 ->  | P8: Gesamt
D9: =VLOOKUP($C$3&$E$3,CHOOSE({1,2},Daten!$B$4:$B$20&Daten!$C$4:$C$20,Daten!$M$4:$M$20),2,FALSE) -> 3276.6 | F9: =VLOOKUP($C$3&$E$3,CHOOSE({1,2},Daten!$B$4:$B$20&Daten!$C$4:$C$20,Daten!O4:O20),2,FALSE)+VLOOKUP($C$2&$E$2,CHOOSE({1,2},Daten!$B$30:$B$42&Daten!$C$30:$C$42,Daten!$F$30:$F$42),2,FALSE)+(VLOOKUP($C$3&$E$3,CHOOSE({1,2},Daten!$B$4:$B$20&Daten!$C$4:$C$20,Daten!$E$4:$E$20),2,FALSE)*Parameter2!D4*Netzrechner!C16)+(VLOOKUP($C$2&$E$2,CHOOSE({1,2},Daten!$B$30:$B$42&Daten!$C$30:$C$42,Daten!D30:D228),2,FALSE)+(VLOOKUP($C$2&$E$2,CHOOSE({1,2},Daten!$B$30:$B$42&Daten!$C$30:$C$42,Daten!H30:H42),2,FALSE)*Parameter2!D4))+(VLOOKUP($N$2,Daten!$B$45:$G$51,5,FALSE)*Netzrechner!C16) -> 334.4823333 | G9: =E9 -> 0 | H9: =(VLOOKUP($C$3&$E$3,CHOOSE({1,2},Daten!$B$4:$B$20&Daten!$C$4:$C$20,Daten!$E$4:$E$20),2,FALSE)*Parameter2!D11*Netzrechner!C16)+(VLOOKUP($C$2&$E$2,CHOOSE({1,2},Daten!$B$30:$B$42&Daten!$C$30:$C$42,Daten!D30:D228),2,FALSE)+(VLOOKUP($C$2&$E$2,CHOOSE({1,2},Daten!$B$30:$B$42&Daten!$C$30:$C$42,Daten!H30:H42),2,FALSE)*Parameter2!D11))+(VLOOKUP($N$2,Daten!$B$45:$G$51,5,FALSE)*Netzrechner!C16) -> 321.5240833 | I9: =G9 -> 0 | J9: =Parameter2!$D$5*Parameter2!D4 -> 1943.75 | K9: =I9 -> 0 | L9: =VLOOKUP($J$2,Daten!$B$24:$G$27,3,FALSE)*Parameter2!$D$4 -> 0 | M9: =K9 -> 0 | N9: =IF(Netzrechner!C4=Daten!B10,Netzrechner!C8*VLOOKUP($N$2,Daten!$B$45:$G$51,3,FALSE),VLOOKUP($N$2,Daten!$B$45:$G$51,3,FALSE)) -> 2000 | O9: =M9 -> 0 | P9: =SUM(D9,F9,H9,J9,L9,N9) -> 7876.356417 | Q9: =G9 -> 0
C11: Jährliche Kosten ( Betriebskosten, AfA, Reparatur) | D11: Instalation | F11: Abschreibung | H11: Reparatur und Kontrolle | J11: Material | L11: Zinsansatz | N11: Gesamt
D12: =D17*Netzrechner!C16 -> 1693.113027 | F12: =(J9+L9+F9)/Netzrechner!C18+('Ergebnisse Detail'!J9+L9+F9)*Netzrechner!C20+D9/Netzrechner!C19+D9*Netzrechner!C20 -> 722.1282033 | H12: =(F17+H17)*Netzrechner!C16 -> 128.376 | I12: =E12 -> 0 | J12: =Parameter2!$D$17*Netzrechner!$C$5 -> 112.5 | K12: € | L12: =(D9+F9+H9+J9+L9+N9)*0.5*Netzrechner!C20 -> 118.1453462 | M12: =I12 -> 0 | N12: =D12+F12+H12+J12+L12 -> 2774.262576 | O12: =O9 -> 0
C14: Arbeitszeitbrdarf der Einnetzung
C16: jährliche Arbeitszeit | D16: Instalation | F16: Reparatur | H16: Kontrolle | J16: Gesamt
D17: =(VLOOKUP($C$3&$E$3,CHOOSE({1,2},Daten!$B$4:$B$20&Daten!$C$4:$C$20,Daten!$G$4:$G$20),2,FALSE)+VLOOKUP($C$3&$E$3,CHOOSE({1,2},Daten!$B$4:$B$20&Daten!$C$4:$C$20,Daten!$I$4:$I$20),2,FALSE))*Parameter2!D4+VLOOKUP($C$2&$E$2,CHOOSE({1,2},Daten!$B$30:$B$42&Daten!$C$30:$C$42,Daten!$J$30:$J$42),2,FALSE)*Parameter2!D4 -> 118.6983333 | F17: =Parameter2!D16*Netzrechner!$C$5 -> 4.5 | H17: =Parameter2!D14*Netzrechner!C5 -> 4.5 | I17: h | J17: =SUM(D17,F17,H17) -> 127.6983333 | K17: h
C19: Erstmontage | D19: Gesamt
D20: =VLOOKUP($C$3&$E$3,CHOOSE({1,2},Daten!$B$4:$B$20&Daten!$C$4:$C$20,Daten!$E$4:$E$20),2,FALSE)*Parameter2!D4+(VLOOKUP($C$2&$E$2,CHOOSE({1,2},Daten!$B$30:$B$42&Daten!$C$30:$C$42,Daten!H30:H42),2,FALSE)*Parameter2!D4)+VLOOKUP($N$2,Daten!$B$45:$G$51,5,FALSE)+VLOOKUP(J2,Daten!B24:F27,5,FALSE)*Parameter2!D4 -> 28.95833333

Sheet Foto (hidden)
D1: =Netzrechner!L12 -> Anlage ( an der Gerüstkonstruktion) | F1: =CONCATENATE(Netzrechner!C4,Netzrechner!H2) -> FolientunnelSeitliche Einnetzung | I1: =Netzrechner!H12 -> Beschwerung/Sonstiges | K1: =Netzrechner!L2 -> Schleuse (Klein)
B2: Regenschutzdach | D2: außerhalb der Anlage | F2: =CONCATENATE(Daten!B4,Daten!C4) -> RegenschutzdachSeitliche Einnetzung | I2: Draht-Plakette-Bungee | K2: Kurbel/Stirnseite
B3: Folientunnel | D3: Anlage ( an der Gerüstkonstruktion) | F3: =CONCATENATE(Daten!B5,Daten!C5) -> RegenschutzdachSeitliche Einnetzung inkl. Außenreihen (3) | I3: Draht-Plakette | K3: Vorhangsystem
B4: Freiland | D4: - | F4: =CONCATENATE(Daten!B6,Daten!C6) -> RegenschutzdachSeitliche Einnetzung inkl. Vorgewende | I4: Beschwerung/Sandsäcke | K4: Schleuse (Groß)
B5: Hagelnetz | F5: =CONCATENATE(Daten!B7,Daten!C7) -> RegenschutzdachKompletteinnetzung (inkl. Traufe inkl. Vorgewende) | I5: Beschwerung/Sonstiges | K5: Schleuse (Klein)
F6: =CONCATENATE(Daten!B8,Daten!C8) -> RegenschutzdachPermanente seitliche Einnetzung | K6: Tor
F7: =CONCATENATE(Daten!B9,Daten!C9) -> RegenschutzdachPermanente seitliche Einnetzung inkl. Außenreihen (3) | K7: Einzelreihenzugang
F8: =CONCATENATE(Daten!B10,Daten!C10) -> FolientunnelSeitliche Einnetzung | K8: bereits vorhanden
F9: =CONCATENATE(Daten!B11,Daten!C11) -> FolientunnelKompletteinnetzung
F10: =CONCATENATE(Daten!B12,Daten!C12) -> FolientunnelPermanente seitliche Einnetzung
F11: =CONCATENATE(Daten!B13,Daten!C13) -> FolientunnelPermanente Kompletteinnetzung
F12: =CONCATENATE(Daten!B14,Daten!C14) -> FreilandSeitliche Einnetzung
F13: =CONCATENATE(Daten!B15,Daten!C15) -> FreilandKompletteinnetzung
F14: =CONCATENATE(Daten!B16,Daten!C16) -> FreilandSeitliche Einnetzung inkl. Vorgewende
F15: =CONCATENATE(Daten!B17,Daten!C17) -> FreilandPermanente seitliche Einnetzung
F16: =CONCATENATE(Daten!B18,Daten!C18) -> FreilandPermanente Kompletteinnetzung
F17: =CONCATENATE(Daten!B19,Daten!C19) -> FreilandPermanente seitliche Einnetzung inkl. Vorgewende
F18: =CONCATENATE(Daten!B20,Daten!C20) -> Freiland_lowCostKompletteinnetzung
F19: =CONCATENATE(Daten!B21,Daten!C21) -> 

Sheet Daten (hidden)
B3: Art der Anlage | C3: Art der Einnetzung | E3: Erstmontage | G3: Schliessen | I3: Öffnen | K3: Maschienezeit | M3: AK_Netz | O3: Ak_Gerüst
B4: Regenschutzdach | C4: Seitliche Einnetzung | E4: 0 | G4: 0.02528419788 | I4: 0.01652020638 | K4: 0.04180440426 | M4: =(Netzrechner!$C$6*2+Netzrechner!$C$7*2)*(Netzrechner!$C$9+2)*Netzrechner!$C$21 -> 921.92 | O4: 0
B5: Regenschutzdach | C5: Seitliche Einnetzung inkl. Außenreihen (3) | E5: 0 | G5: =(0.025*(4)*Netzrechner!$C$6)/Parameter2!$D$4 -> 0.008038585209 | I5: =(0.017*(4)*Netzrechner!$C$6)/Parameter2!$D$4 -> 0.005466237942 | K5: 0.04180440426 | M5: =(Netzrechner!$C$6*2+Netzrechner!$C$7*2)*(Netzrechner!$C$9+2)*Netzrechner!$C$21+Parameter2!D23*Netzrechner!$C$6*6*Netzrechner!$C$21 -> 1889.42 | O5: 0
B6: Regenschutzdach | C6: Seitliche Einnetzung inkl. Vorgewende | E6: 0 | G6: 0.02528419788 | I6: 0.01652020638 | K6: 0.04180440426 | M6: =(Netzrechner!$C$6*2+Netzrechner!$C$7*2)*(Netzrechner!$C$9+2)*Netzrechner!$C$21+(Netzrechner!$C$7+2*Netzrechner!$C$8)*(Netzrechner!C22)*Netzrechner!$C$21+(Netzrechner!$C$7*Netzrechner!$C$8)*Netzrechner!$C$21 -> 1086.61 | O6: =((Netzrechner!C7+2*Netzrechner!C8)/4*Parameter2!D15)*2 -> 217.5
B7: Regenschutzdach | C7: Kompletteinnetzung (inkl. Traufe inkl. Vorgewende) | E7: 0 | G7: =(0.025*(Netzrechner!$C$10-1)*Netzrechner!$C$6)/Parameter2!$D$4 -> 0.005024115756 | I7: =(0.017*(Netzrechner!$C$10-1)*Netzrechner!$C$6)/Parameter2!$D$4 -> 0.003416398714 | K7: 0.04180440426 | M7: =(Netzrechner!$C$6*2+Netzrechner!$C$7*2)*(Netzrechner!$C$9+2)*Netzrechner!$C$21+(Netzrechner!$C$7+2*Netzrechner!$C$8)*(Netzrechner!C22)*Netzrechner!$C$21+(Netzrechner!$C$7*Netzrechner!$C$8)*Netzrechner!$C$21+Parameter2!D23*Netzrechner!$C$6*(Netzrechner!C10-1)*Netzrechner!$C$21 -> 1489.735 | O7: =((Netzrechner!C7+2*Netzrechner!C8)/4*Parameter2!D15)*2 -> 217.5
B8: Regenschutzdach | C8: Permanente seitliche Einnetzung | E8: 0.08888888889 | G8: 0 | I8: 0 | K8: 0 | M8: =(Netzrechner!$C$6*2+Netzrechner!$C$7*2)*(Netzrechner!$C$9+2)*Netzrechner!$C$21 -> 921.92 | O8: 0
B9: Regenschutzdach | C9: Permanente seitliche Einnetzung inkl. Außenreihen (3) | E9: 0.08888888889 | G9: 0 | I9: 0 | K9: 0 | M9: =(Netzrechner!$C$6*2+Netzrechner!$C$7*2)*(Netzrechner!$C$9+2)*Netzrechner!$C$21+0.8*Netzrechner!$C$6*6*Netzrechner!$C$21 -> 1437.92 | O9: 0
B10: Folientunnel | C10: Seitliche Einnetzung | E10: 0 | G10: 0.04444444444 | I10: 0.03188888889 | K10: 0 | M10: =IF(Netzrechner!$C$11="ja",(((((Netzrechner!$C$7)*2*(Netzrechner!$C$10+1))+(Netzrechner!$C$6*2*(Netzrechner!$C$9+1)))*Netzrechner!$C$21)*Netzrechner!$C$8),(((((Netzrechner!$C$7*Netzrechner!$C$8)*2*(Netzrechner!$C$10+1))+(Netzrechner!$C$6*2*(Netzrechner!$C$9+1)))*Netzrechner!$C$21)+((Netzrechner!$C$8-1)*Netzrechner!$C$6*Netzrechner!$C$9*Netzrechner!$C$21))) -> 3276.6 | O10: 0
B11: Folientunnel | C11: Kompletteinnetzung | E11: 0 | G11: 0.04102564103 | I11: 0.02051282051 | K11: 0 | M11: =(Netzrechner!$C$6*2+(Netzrechner!$C$7*Netzrechner!$C$8)*2)*(Netzrechner!$C$9+0.5)*Netzrechner!$C$21+((Netzrechner!$C$6*(Netzrechner!$C$7*Netzrechner!$C$8)*Netzrechner!$C$21)) -> 10599.5 | O11: 0
B12: Folientunnel | C12: Permanente seitliche Einnetzung | E12: 0.05514705882 | G12: 0 | I12: 0 | K12: 0 | M12: =IF(Netzrechner!$C$11="ja",(((((Netzrechner!$C$7)*2*(Netzrechner!$C$10+1))+(Netzrechner!$C$6*2*(Netzrechner!$C$9+1)))*Netzrechner!$C$21)*Netzrechner!$C$8),(((((Netzrechner!$C$7)*2*(Netzrechner!$C$10+1))+(Netzrechner!$C$6*2*(Netzrechner!$C$9+1)))*Netzrechner!$C$21)+((Netzrechner!$C$8-1)*Netzrechner!$C$6*Netzrechner!$C$9*Netzrechner!$C$21))) -> 2649.66 | O12: 0
B13: Folientunnel | C13: Permanente Kompletteinnetzung | E13: 0.04102564103 | G13: 0 | I13: 0 | K13: 0 | M13: =(Netzrechner!$C$6*2+(Netzrechner!$C$7*Netzrechner!$C$8)*2)*(Netzrechner!$C$9+0.5)*Netzrechner!$C$21+((Netzrechner!$C$6*(Netzrechner!$C$7*Netzrechner!$C$8)*Netzrechner!$C$21)) -> 10599.5 | O13: 0
B14: Freiland | C14: Seitliche Einnetzung | E14: 0.04722222222 | G14: 0.02222222222 | I14: 0.02222222222 | K14: 0.04444444444 | M14: =(Netzrechner!$C$6*2+Netzrechner!$C$7*2)*(Netzrechner!$C$9+0.5)*Netzrechner!$C$21 -> 576.2 | O14: =(Netzrechner!C6*2+Netzrechner!C7*2)/4*Parameter2!D15 -> 1005
B15: Freiland | C15: Kompletteinnetzung | E15: 0.65 | G15: =60*Netzrechner!C5/Parameter2!D4 -> 0.04340836013 | I15: =40*Netzrechner!C5/Parameter2!D4 -> 0.02893890675 | K15: 0.02197802198 | M15: =(Netzrechner!$C$6*2+Netzrechner!$C$7*2)*(Netzrechner!$C$9+0.5)*Netzrechner!$C$21+(Netzrechner!$C$6*Netzrechner!$C$7)*Netzrechner!$C$21 -> 1543.7 | O15: =(Netzrechner!$C$10*Netzrechner!$C$6)/4*Parameter2!$D$15+(Netzrechner!$C$6*2+Netzrechner!$C$7*2)/4*Parameter2!$D$15 -> 2645.625
B16: Freiland | C16: Seitliche Einnetzung inkl. Vorgewende | E16: 0.04722222222 | G16: 0.02222222222 | I16: 0.02222222222 | K16: 0.04444444444 | M16: =(Netzrechner!$C$6*2+Netzrechner!$C$7*2)*(Netzrechner!$C$9+0.5)*Netzrechner!$C$21++(Netzrechner!$C$7+2*Netzrechner!$C$8)*(Netzrechner!C22)*Netzrechner!$C$21+(Netzrechner!$C$7*Netzrechner!$C$8)*Netzrechner!$C$21 -> 740.89 | O16: =(Netzrechner!$C$6*2+Netzrechner!$C$7*2)/4*Parameter2!$D$15+((Netzrechner!$C$7+2*Netzrechner!$C$8)/4*Parameter2!$D$15)*2 -> 1222.5
B17: Freiland | C17: Permanente seitliche Einnetzung | E17: =E14+G14 -> 0.06944444444 | G17: 0 | I17: 0 | K17: 0 | M17: =(Netzrechner!$C$6*2+Netzrechner!$C$7*2)*(Netzrechner!$C$9+0.5)*Netzrechner!$C$21 -> 576.2 | O17: =(Netzrechner!C6*2+Netzrechner!C7*2)/4*Parameter2!D15 -> 1005
B18: Freiland | C18: Permanente Kompletteinnetzung | E18: =E15+G15 -> 0.6934083601 | G18: 0 | I18: 0 | K18: 0 | M18: =(Netzrechner!$C$6*2+Netzrechner!$C$7*2)*(Netzrechner!$C$9+0.5)*Netzrechner!$C$21+(Netzrechner!$C$6*Netzrechner!$C$7)*Netzrechner!$C$21 -> 1543.7 | O18: =(Netzrechner!$C$10*Netzrechner!$C$6)/4*Parameter2!$D$15+(Netzrechner!$C$6*2+Netzrechner!$C$7*2)/4*Parameter2!$D$15 -> 2645.625
B19: Freiland | C19: Permanente seitliche Einnetzung inkl. Vorgewende | E19: =E16+G16 -> 0.06944444444 | G19: 0 | I19: 0 | K19: 0 | M19: =(Netzrechner!$C$6*2+Netzrechner!$C$7*2)*(Netzrechner!$C$9+0.5)*Netzrechner!$C$21+(Netzrechner!$C$7+2*Netzrechner!$C$8)*(Netzrechner!C22)*Netzrechner!$C$21+(Netzrechner!$C$7*Netzrechner!$C$8)*Netzrechner!$C$21 -> 740.89 | O19: =(Netzrechner!C6*2+Netzrechner!C7*2)/4*Parameter2!D15+((Netzrechner!C7+2*Netzrechner!C8)/4*Parameter2!D15)*2 -> 1222.5
B20: Freiland_lowCost | C20: Kompletteinnetzung | E20: 0 | G20: =60*Netzrechner!C5/Parameter2!D4 -> 0.04340836013 | I20: =40*Netzrechner!C5/Parameter2!D4 -> 0.02893890675 | K20: 0.02197802198 | M20: =(Netzrechner!$C$6*2+Netzrechner!$C$7*2)*(Netzrechner!$C$9+0.5)*Netzrechner!$C$21+(Netzrechner!$C$6*Netzrechner!$C$7)*Netzrechner!$C$21 -> 1543.7 | O20: =(Netzrechner!$C$10/2*Netzrechner!$C$6)/8*Parameter2!$D$15+(Netzrechner!$C$6*2+Netzrechner!$C$7*2)/8*Parameter2!$D$15 -> 912.65625
B23: Bodenabschluss /Netzbefestigung | D23: Anschaffungskosten | F23: Erstmontage | H23: Reparaturzeit bei Starkwindereignissen
B24: Draht-Plakette-Bungee | D24: =Parameter2!D6 -> 1.325 | F24: 0.00987804878 | H24: 0
B25: Draht-Plakette | D25: =Parameter2!D7 -> 0.6 | F25: 0.00887804878 | H25: 0
B26: Beschwerung/Sandsäcke | D26: =Parameter2!D4/Parameter2!D8*Parameter2!D9/Parameter2!D4 -> 0.035 | F26: 0.015 | H26: =10/400 -> 0.025
B27: Beschwerung/Sonstiges | D27: 0 | F27: 0 | H27: =10/400 -> 0.025
B29: Lagerung | C29: Art der Einnetzung | D29: Anschaffungskosten | F29: Kosten Aufwickelgerät | H29: Erstmontage | J29: jährlicher Arbeitszeitbedarf
B30: außerhalb der Anlage | C30: Seitliche Einnetzung | D30: 0 | F30: =1/Netzrechner!$C$5*Parameter2!$D$3 -> 4.444444444 | H30: 0 | J30: 0.02
B31: außerhalb der Anlage | C31: Seitliche Einnetzung inkl. Außenreihen (3) | D31: 0 | F31: =1.5/Netzrechner!$C$5*Parameter2!$D$3 -> 6.666666667 | H31: 0 | J31: 0.02
B32: außerhalb der Anlage | C32: Seitliche Einnetzung inkl. Vorgewende | D32: 0 | F32: =1/Netzrechner!$C$5*Parameter2!$D$3 -> 4.444444444 | H32: 0 | J32: 0.02
B33: außerhalb der Anlage | C33: Kompletteinnetzung | D33: 0 | F33: =2/Netzrechner!$C$5*Parameter2!$D$3 -> 8.888888889 | H33: 0 | J33: 0.02
B34: Anlage ( an der Gerüstkonstruktion) | C34: Seitliche Einnetzung | D34: =Parameter2!$D$13*Parameter2!$D$4 -> 93.3 | F34: 0 | H34: =30/3600 -> 0.008333333333 | J34: 0
B35: Anlage ( an der Gerüstkonstruktion) | C35: Seitliche Einnetzung inkl. Außenreihen (3) | D35: =Parameter2!$D$13*Parameter2!$D$4+4*Netzrechner!C6*Parameter2!D13 -> 123.3 | F35: 0 | H35: =30/3600+((30/3600*Netzrechner!C6*4)/Parameter2!D4) -> 0.01101286174 | J35: 0
B36: Anlage ( an der Gerüstkonstruktion) | C36: Seitliche Einnetzung inkl. Vorgewende | D36: =Parameter2!$D$13*(Parameter2!$D$4+2*Netzrechner!C8) -> 94.5 | F36: 0 | H36: =30/3600 -> 0.008333333333 | J36: 0
B37: Anlage ( an der Gerüstkonstruktion) | C37: Kompletteinnetzung (inkl. Traufe inkl. Vorgewende) | D37: =Parameter2!$D$13*Parameter2!$D$4+((Netzrechner!C10-1)*Netzrechner!C6*Parameter2!D13) -> 112.05 | F37: 0 | H37: =30/3600+((30/3600*Netzrechner!C6*(Netzrechner!C10-1))/Parameter2!D4) -> 0.01000803859 | J37: 0
B38: Anlage ( an der Gerüstkonstruktion) | C38: Kompletteinnetzung | D38: =Parameter2!$D$13*Parameter2!$D$4+((Netzrechner!C10-1)*Netzrechner!C6*Parameter2!D13) -> 112.05 | F38: 0 | H38: =30/3600*Netzrechner!C6*Netzrechner!C10/Parameter2!D4 -> 0.002344587353 | J38: 0
B39: - | C39: Permanente Kompletteinnetzung | D39: 0 | F39: 0 | H39: 0 | J39: 0
B40: - | C40: Permanente seitlche Einnetzung inkl. Außenreihen (3) | D40: 0 | F40: 0 | H40: 0 | J40: 0
B41: - | C41: Permanente seitliche Einnetzung | D41: 0 | F41: 0 | H41: 0 | J41: 0
B42: - | C42: Permanente seitliche Einnetzung inkl. Vorgewende | D42: 0 | F42: 0 | H42: 0 | J42: 0
B44: Zugang zur Anlage | D44: Anschaffungskosten | F44: Erstmontage
B45: Kurbel/Stirnseite | D45: =Parameter2!D18 -> 111.86 | F45: 10
B46: Vorhangsystem | D46: =Parameter2!D22*Parameter2!D23 -> 30 | F46: 1
B47: Schleuse (Klein) | D47: =Parameter2!D20 -> 200 | F47: 16
B48: Schleuse | D48: =Parameter2!D21 -> 475 | F48: 8
B49: bereits vorhanden | D49: 0 | F49: 0
B50: =IF(Netzrechner!$C$4=Daten!$B$10,"","Einzelreihenzugang") ->  | D50: =Netzrechner!C10*Parameter2!D22*Parameter2!D23*2 -> 210 | F50: =5/60*2*Netzrechner!C10 -> 0.5833333333
B51: =IF(Netzrechner!$C$4=Daten!$B$10,"","Tor") ->  | D51: =Parameter2!D19 -> 1500 | F51: 0

Sheet Parameter2 (hidden)
D2: Wert
D3: 5
D4: =IF(Netzrechner!$C$4=Daten!$B$10,IF(Netzrechner!$C$11="ja",(Netzrechner!C6*2+Netzrechner!C7*2)*Netzrechner!C8,Netzrechner!C6*(Netzrechner!C8+1)+((Netzrechner!C7*Netzrechner!C8)*2)),(Netzrechner!$C$6+Netzrechner!$C$7)*2) -> 1555
D5: 1.25
D6: 1.325
D7: 0.6
D8: 2
D9: 0.07
D10: 2
D11: 0.01
D12: 0.1
D13: =D12/D10+D11 -> 0.06
D14: 4
D15: 15
D16: 4
D17: 100
D18: =D24*2+2*Netzrechner!C7*D25 -> 111.86
D19: 1500
D20: 200
D21: 475
D22: 20
D23: 1.5
D24: 40
D25: 1.77

Sheet Auswahloptionen2 (hidden)
A3: Höhenberechnung | B3: =Netzrechner!B6 -> Länge Tunnel (2): | C3: =Netzrechner!B7 -> Breite Tunnel (3): | D3: Höhe: | E3: Preis Netz | F3: Nutzungsdauer Netz | G3: Art der Anlage: | H3: =IF(Netzrechner!H2= Daten!C37,"","außerhalb der Anlage") -> außerhalb der Anlage | I3: Zugang zur Anlage | K3: Kurbel/Stirnseite | N3: Anzahl Tunnel (4) | P3: Zinsanansatz | Q3: =IF(Netzrechner!$C$4=Daten!$B$10,IF(Netzrechner!$C$8>1,"ja",""),"") -> ja
A4: Seitenhöhe Netz (5) | B4: 0 | C4: 0 | D4: 0.1 | E4: 0 | F4: 1 | G4: Regenschutzdach | H4: Anlage ( an der Gerüstkonstruktion) | I4: =IF(Netzrechner!$C$4="Folientunnel",K3,K3) -> Kurbel/Stirnseite | K4: Vorhangsystem | N4: Länge Vorgewende (4) | P4: 0.01 | Q4: =IF(Netzrechner!$C$4=Daten!$B$10,IF(Netzrechner!$C$8>1,"nein",""),"") -> nein
A5: Strecke Boden- Folie (5) | B5: 5 | C5: 0.5 | D5: 0.2 | E5: 0.5 | F5: 2 | G5: Folientunnel | H5: - | I5: Schleuse (Klein) | P5: 0.02
B6: 10 | C6: 1 | D6: 0.3 | E6: 0.51 | F6: 3 | G6: Freiland | I6: Schleuse (Groß) | K6: bereits vorhanden | P6: 0.03
B7: 15 | C7: 1.5 | D7: 0.4 | E7: 0.52 | F7: 4 | G7: =IF(Netzrechner!$C$5<0.4,"Freiland_lowCost","") ->  | I7: bereits vorhanden | K7: Einzelreihenzugang | P7: 0.04
B8: 20 | C8: 2 | D8: 0.5 | E8: 0.53 | F8: 5 | I8: Einzelreihenzugang | K8: Tor | P8: 0.05
B9: 25 | C9: 2.5 | D9: 0.6 | E9: 0.54 | F9: 6 | I9: Tor | P9: 0.06
B10: 30 | C10: 3 | D10: 0.7 | E10: 0.55 | F10: 7 | P10: 0.07
B11: 35 | C11: 3.5 | D11: 0.8 | E11: 0.56 | F11: 8 | P11: 0.08
B12: 40 | C12: 4 | D12: 0.9 | E12: 0.57 | F12: 9 | P12: 0.09
B13: 45 | C13: 5 | D13: 1 | E13: 0.58 | F13: 10 | P13: 0.1
B14: 50 | C14: 6 | D14: 1.1 | E14: 0.59 | F14: 11 | P14: 0.11
B15: 55 | C15: 7 | D15: 1.2 | E15: 0.6 | F15: 12 | P15: 0.12
B16: 60 | C16: 8 | D16: 1.3 | E16: 0.61 | F16: 13
B17: 65 | C17: 9 | D17: 1.4 | E17: 0.62 | F17: 14
B18: 70 | C18: 10 | D18: 1.5 | E18: 0.63 | F18: 15
B19: 75 | C19: 11 | D19: 1.6 | E19: 0.64 | F19: 16
B20: 80 | C20: 12 | D20: 1.7 | E20: 0.65 | F20: 17
B21: 85 | C21: 13 | D21: 1.8 | E21: 0.66 | F21: 18
B22: 90 | C22: 14 | D22: 1.9 | E22: 0.67 | F22: 19
B23: 95 | C23: 15 | D23: 2 | E23: 0.68 | F23: 20
B24: 100 | C24: 16 | D24: 2.1 | E24: 0.69
B25: 105 | C25: 17 | D25: 2.2 | E25: 0.7
B26: 110 | C26: 18 | D26: 2.3 | E26: 0.71
B27: 115 | C27: 19 | D27: 2.4 | E27: 0.72
B28: 120 | C28: 20 | D28: 2.5 | E28: 0.73
B29: 125 | C29: 21 | D29: 2.6 | E29: 0.74
B30: 130 | C30: 22 | D30: 2.7 | E30: 0.75
B31: 135 | C31: 23 | D31: 2.8 | E31: 0.76
B32: 140 | C32: 24 | D32: 2.9 | E32: 0.77
B33: 145 | C33: 25 | D33: 3 | E33: 0.78
B34: 150 | C34: 26 | D34: 3.1 | E34: 0.79
B35: 155 | C35: 27 | D35: 3.2 | E35: 0.8
B36: 160 | C36: 28 | D36: 3.3 | E36: 0.81
B37: 165 | C37: 29 | D37: 3.4 | E37: 0.82
B38: 170 | C38: 30 | D38: 3.5 | E38: 0.83
B39: 175 | C39: 31 | D39: 3.6 | E39: 0.84
B40: 180 | C40: 32 | D40: 3.7 | E40: 0.85
B41: 185 | C41: 33 | D41: 3.8 | E41: 0.86
B42: 190 | C42: 34 | D42: 3.9 | E42: 0.87
B43: 195 | C43: 35 | D43: 4 | E43: 0.88
B44: 200 | C44: 36 | D44: 4.1 | E44: 0.89
B45: 205 | C45: 37 | D45: 4.2 | E45: 0.9
B46: 210 | C46: 38 | D46: 4.3 | E46: 0.91
B47: 215 | C47: 39 | D47: 4.4 | E47: 0.92
B48: 220 | C48: 40 | D48: 4.5 | E48: 0.93
B49: 225 | C49: 41 | D49: 4.6 | E49: 0.94
B50: 230 | C50: 42 | D50: 4.7 | E50: 0.95
B51: 235 | C51: 43 | D51: 4.8 | E51: 0.96
B52: 240 | C52: 44 | D52: 4.9 | E52: 0.97
B53: 245 | C53: 45 | D53: 5 | E53: 0.98
B54: 250 | C54: 46 | D54: 5.1 | E54: 0.99
B55: 255 | C55: 47 | D55: 5.2 | E55: 1
B56: 260 | C56: 48 | D56: 5.3 | E56: 1.01
B57: 265 | C57: 49 | D57: 5.4 | E57: 1.02
B58: 270 | C58: 50 | D58: 5.5 | E58: 1.03
B59: 275 | C59: 51 | D59: 5.6 | E59: 1.04
B60: 280 | C60: 52 | D60: 5.7 | E60: 1.05
B61: 285 | C61: 53 | D61: 5.8 | E61: 1.06
B62: 290 | C62: 54 | D62: 5.9 | E62: 1.07
B63: 295 | C63: 55 | D63: 6 | E63: 1.08
B64: 300 | C64: 56 | D64: 6.1 | E64: 1.09
B65: 305 | C65: 57 | D65: 6.2 | E65: 1.1
B66: 310 | C66: 58 | D66: 6.3 | E66: 1.11
B67: 315 | C67: 59 | D67: 6.4 | E67: 1.12
C68: 60 | D68: 6.5 | E68: 1.13
C69: 61 | D69: 6.6 | E69: 1.14
C70: 62 | D70: 6.7 | E70: 1.15
C71: 63 | D71: 6.8 | E71: 1.16
C72: 64 | D72: 6.9 | E72: 1.17
C73: 65 | D73: 7 | E73: 1.18
C74: 66 | D74: 7.1 | E74: 1.19
C75: 67 | D75: 7.2 | E75: 1.2
C76: 68 | D76: 7.3 | E76: 1.21
C77: 69 | D77: 7.4 | E77: 1.22
C78: 70 | D78: 7.5 | E78: 1.23
C79: 71 | D79: 7.6 | E79: 1.24
C80: 72 | D80: 7.7 | E80: 1.25
C81: 73 | D81: 7.8 | E81: 1.26
C82: 74 | D82: 7.9 | E82: 1.27
C83: 75 | D83: 8 | E83: 1.28
C84: 76 | D84: 8.1 | E84: 1.29
C85: 77 | D85: 8.2 | E85: 1.3
C86: 78 | D86: 8.3 | E86: 1.31
C87: 79 | D87: 8.4 | E87: 1.32
C88: 80 | D88: 8.5 | E88: 1.33
C89: 81 | D89: 61 | E89: 1.34
C90: 82 | D90: 62 | E90: 1.35
C91: 83 | D91: 63 | E91: 1.36
C92: 84 | D92: 64 | E92: 1.37
C93: 85 | D93: 65 | E93: 1.38
C94: 86 | D94: 66 | E94: 1.39
C95: 87 | D95: 67 | E95: 1.4
C96: 88 | D96: 68 | E96: 1.41
C97: 89 | D97: 69 | E97: 1.42
C98: 90 | D98: 70 | E98: 1.43
C99: 91 | D99: 71 | E99: 1.44
C100: 92 | D100: 72 | E100: 1.45
C101: 93 | D101: 73 | E101: 1.46
C102: 94 | D102: 74 | E102: 1.47
C103: 95 | D103: 75 | E103: 1.48
C104: 96 | D104: 76 | E104: 1.49
C105: 97 | D105: 77 | E105: 1.5
C106: 98 | D106: 78 | E106: 1.51
C107: 99 | D107: 79 | E107: 1.52
C108: 100 | D108: 80 | E108: 1.53
C109: 101 | D109: 81 | E109: 1.54
C110: 102 | D110: 82 | E110: 1.55
C111: 103 | D111: 83 | E111: 1.56
C112: 104 | D112: 84 | E112: 1.57
C113: 105 | D113: 85 | E113: 1.58
C114: 106 | D114: 86 | E114: 1.59
C115: 107 | D115: 87 | E115: 1.6
C116: 108 | D116: 88 | E116: 1.61
C117: 109 | D117: 89 | E117: 1.62
C118: 110 | D118: 90 | E118: 1.63
C119: 111 | D119: 91 | E119: 1.64
C120: 112 | D120: 92 | E120: 1.65
C121: 113 | D121: 93 | E121: 1.66
C122: 114 | D122: 94 | E122: 1.67
C123: 115 | D123: 95 | E123: 1.68
C124: 116 | D124: 96 | E124: 1.69
C125: 117 | D125: 97 | E125: 1.7
C126: 118 | D126: 98 | E126: 1.71
C127: 119 | D127: 99 | E127: 1.72
C128: 120 | D128: 100 | E128: 1.73
C129: 121 | D129: 101 | E129: 1.74
C130: 122 | D130: 102 | E130: 1.75
C131: 123 | D131: 103 | E131: 1.76
C132: 124 | D132: 104 | E132: 1.77
C133: 125 | D133: 105 | E133: 1.78
C134: 126 | D134: 106 | E134: 1.79
C135: 127 | D135: 107 | E135: 1.8
C136: 128 | D136: 108 | E136: 1.81
C137: 129 | D137: 109 | E137: 1.82
C138: 130 | D138: 110 | E138: 1.83
C139: 131 | D139: 111 | E139: 1.84
C140: 132 | D140: 112 | E140: 1.85
C141: 133 | D141: 113 | E141: 1.86
C142: 134 | D142: 114 | E142: 1.87
C143: 135 | D143: 115 | E143: 1.88
C144: 136 | D144: 116 | E144: 1.89
C145: 137 | D145: 117 | E145: 1.9
C146: 138 | D146: 118 | E146: 1.91
C147: 139 | D147: 119 | E147: 1.92
C148: 140 | D148: 120 | E148: 1.93
C149: 141 | D149: 121 | E149: 1.94
C150: 142 | D150: 122 | E150: 1.95
C151: 143 | D151: 123 | E151: 1.96
C152: 144 | D152: 124 | E152: 1.97
C153: 145 | D153: 125 | E153: 1.98
C154: 146 | D154: 126 | E154: 1.99
C155: 147 | D155: 127 | E155: 2
C156: 148 | D156: 128 | E156: 2.01
C157: 149 | D157: 129 | E157: 2.02
C158: 150 | D158: 130 | E158: 2.03
C159: 151 | D159: 131 | E159: 2.04
C160: 152 | D160: 132 | E160: 2.05
C161: 153 | D161: 133 | E161: 2.06
C162: 154 | D162: 134 | E162: 2.07
C163: 155 | D163: 135 | E163: 2.08
C164: 156 | D164: 136 | E164: 2.09
C165: 157 | D165: 137 | E165: 2.1
C166: 158 | D166: 138 | E166: 2.11
C167: 159 | D167: 139 | E167: 2.12
C168: 160 | D168: 140 | E168: 2.13
C169: 161 | D169: 141 | E169: 2.14
C170: 162 | D170: 142 | E170: 2.15
C171: 163 | D171: 143 | E171: 2.16
C172: 164 | D172: 144 | E172: 2.17
C173: 165 | D173: 145 | E173: 2.18
C174: 166 | D174: 146 | E174: 2.19
C175: 167 | D175: 147 | E175: 2.2
C176: 168 | D176: 148 | E176: 2.21
C177: 169 | D177: 149 | E177: 2.22
C178: 170 | D178: 150 | E178: 2.23
C179: 171 | D179: 151 | E179: 2.24
C180: 172 | D180: 152 | E180: 2.25
C181: 173 | D181: 153 | E181: 2.26
C182: 174 | D182: 154 | E182: 2.27
C183: 175 | D183: 155 | E183: 2.28
C184: 176 | D184: 156 | E184: 2.29
C185: 177 | D185: 157 | E185: 2.3
C186: 178 | D186: 158 | E186: 2.31
C187: 179 | D187: 159 | E187: 2.32
C188: 180 | E188: 2.33
C189: 181 | E189: 2.34
C190: 182 | E190: 2.35
C191: 183 | E191: 2.36
C192: 184 | E192: 2.37
C193: 185 | E193: 2.38
C194: 186 | E194: 2.39
C195: 187 | E195: 2.4
C196: 188 | E196: 2.41
C197: 189 | E197: 2.42
C198: 190 | E198: 2.43
C199: 191 | E199: 2.44
C200: 192 | E200: 2.45
C201: 193 | E201: 2.46
C202: 194 | E202: 2.47
... 19 more rows
